[Event "4th EFE Metz Festival-IM"]
[Site "Metz"]
[Date "2018.07.27"]
[Round "7"]
[White "Le Corre, Benjamin"]
[Black "Harutyunyan, Ruben"]
[Result "1/2-1/2"]
[ECO "B66"]
[WhiteElo "2257"]
[BlackElo "2303"]
[Annotator "NA"]
[PlyCount "73"]
[EventDate "2018.07.22"]
[EventType "tourn"]
[EventCountry "FRA"]
[SourceTitle "playchess.com"]
[Source "ChessBase"]
[SourceQuality "1"]
[TimeControl "5400+30"]

1. e4 {[%emt 0:00:00]} c5 {[%emt 0:00:11]} 2. Nf3 {[%emt 0:00:00]} d6 {[%emt 0:00:04]} 3. d4 {[%emt 0:00:00]} cxd4 {[%emt 0:00:04]} 4. Nxd4 {[%emt 0:00:00]} Nf6 {[%emt 0:00:03]} 5. Nc3 {[%emt 0:00:00]} Nc6 {[%emt 0:00:03]} 6. Bg5 {[%emt 0:03:14]} e6 {[%emt 0:00:10]} 7. Qd2 {[%emt 0:00:04]} a6 {[%emt 0:00:03]} 8. f4 {[%emt 0:03:32]} Bd7 {[%emt 0:00:09]} 9. O-O-O {[%emt 0:03:17]} b5 {[%emt 0:00:26]} 10. Nxc6 {[%emt 0:10:18]} Bxc6 {[%emt 0:00:06]} 11. Qe1 {[%emt 0:01:30]} Qa5 {[%emt 0:28:22]} 12. Kb1 {[%emt 0:09:56]} Ra7 {[%emt 0:30:50]} 13. Bd3 {[%emt 0:10:59]} b4 {[%emt 0:00:39]} 14. Bxf6 {[%emt 0:00:15]} gxf6 {[%emt 0:00:06]} 15. Ne2 {[%emt 0:00:06]} Qc5 {[%emt 0:01:42]} 16. Nc1 {[%emt 0:12:57]} Rg8 {[%emt 0:10:20]} 17. Nb3 {[%emt 0:01:20]} Qb6 {[%emt 0:01:07]} 18. g3 {[%emt 0:01:32]} a5 {[%emt 0:08:12]} 19. Qe2 {[%emt 0:00:56]} a4 {[%emt 0:00:14]} 20. Nd2 {[%emt 0:00:59]} a3 {[%emt 0:01:45]} 21. Nc4 {[%emt 0:00:29]} Qc5 {[%emt 0:01:31]} 22. b3 {[%emt 0:01:50]} f5 {[%emt 0:04:04]} 23. Rhe1 {[%emt 0:00:54]} fxe4 {[%emt 0:03:12]} 24. Bxe4 {[%emt 0:00:32]} d5 {[%emt 0:01:34]} 25. Bxh7 {[%emt 0:00:12]} Rg7 {[%emt 0:05:14]} 26. Qh5 {[%emt 0:03:50]} Rxh7 {[%emt 0:01:50]} 27. Rxe6+ {[%emt 0:01:03]} Kd8 {[%emt 0:01:05]} 28. Qg5+ {[%emt 0:05:18]} Kc8 {[%emt 0:00:08]} 29. Rxc6+ {[%emt 0:20:30]} Qxc6 {[%emt 0:00:02]} 30. Qg8 {[%emt 0:00:07]} dxc4 {[%emt 0:01:30]} 31. Qxf8+ {[%emt 0:00:06]} Kb7 {[%emt 0:00:35]} 32. Qxb4+ {[%emt 0:00:06]} Kc7 {[%emt 0:00:21]} 33. Qe7+ {[%emt 0:01:13]} Kb6 {[%emt 0:00:07]} 34. Qb4+ {[%emt 0:05:44]} Kc7 {[%emt 0:00:04]} 35. Qe7+ {[%emt 0:00:38]} Kb6 {[%emt 0:00:04]} 36. Qb4+ {[%emt 0:03:50]} Kc7 {[%emt 0:00:04]} 37. Qe7+ {[%emt 0:00:21]} 1/2-1/2

[Event "4th EFE Metz Festival-IM"]
[Site "Metz"]
[Date "2018.07.28"]
[Round "8"]
[White "Mohammad, Fahim"]
[Black "Murdzia, Piotr"]
[Result "0-1"]
[ECO "E15"]
[WhiteElo "2383"]
[BlackElo "2410"]
[Annotator "NA"]
[PlyCount "86"]
[EventDate "2018.07.22"]
[EventType "tourn"]
[EventCountry "FRA"]
[SourceTitle "playchess.com"]
[Source "ChessBase"]
[SourceQuality "1"]
[TimeControl "5400+30"]

1. d4 {[%emt 0:05:17]} Nf6 {[%emt 0:00:29]} 2. Nf3 {[%emt 0:00:10]} e6 {[%emt 0:00:54]} 3. c4 {[%emt 0:00:14]} b6 {[%emt 0:01:15]} 4. g3 {[%emt 0:00:35]} Ba6 {[%emt 0:00:48]} 5. Qc2 {[%emt 0:01:38]} Bb4+ {[%emt 0:01:28]} 6. Bd2 {[%emt 0:03:02]} c5 {[%emt 0:01:19]} 7. Bxb4 {[%emt 0:04:26]} cxb4 {[%emt 0:00:04]} 8. Bg2 {[%emt 0:00:28]} Bb7 {[%emt 0:01:21]} 9. Nbd2 {[%emt 0:01:25]} Nc6 10. e4 {[%emt 0:04:27]} O-O {[%emt 0:11:29]} 11. O-O {[%emt 0:08:26]} d6 {[%emt 0:03:32]} 12. d5 {[%emt 0:07:04]} Ne5 {[%emt 0:05:16]} 13. Nxe5 {[%emt 0:05:41]} dxe5 {[%emt 0:00:06]} 14. a3 {[%emt 0:01:21]} bxa3 {[%emt 0:12:30]} 15. Rxa3 {[%emt 0:00:52]} Qc7 {[%emt 0:02:01]} 16. Rc3 {[%emt 0:03:51]} a5 {[%emt 0:09:36]} 17. Kh1 {[%emt 0:18:16]} Nd7 {[%emt 0:28:50]} 18. f4 {[%emt 0:07:13]} exf4 {[%emt 0:00:53]} 19. gxf4 {[%emt 0:00:31]} Rae8 {[%emt 0:00:04]} 20. e5 {[%emt 0:04:08]} f5 {[%emt 0:02:54]} 21. Nf3 {[%emt 0:05:55]} Nc5 {[%emt 0:00:39]} 22. Nd4 {[%emt 0:02:22]} Qd7 {[%emt 0:01:51]} 23. d6 {[%emt 0:07:01]} Be4 {[%emt 0:00:28]} 24. Bxe4 {[%emt 0:01:17]} fxe4 {[%emt 0:00:09]} 25. Nb3 {[%emt 0:01:14]} Nd3 {[%emt 0:01:06]} 26. Rxd3 {[%emt 0:00:21]} exd3 {[%emt 0:00:05]} 27. Qxd3 {[%emt 0:00:06]} g5 {[%emt 0:00:39]} 28. fxg5 {[%emt 0:02:27]} Rxf1+ {[%emt 0:00:23]} 29. Qxf1 {[%emt 0:00:03]} Rf8 {[%emt 0:00:08]} 30. Qg2 {[%emt 0:01:44]} Qa4 {[%emt 0:00:39]} 31. Qh3 {[%emt 0:01:18]} Rf5 {[%emt 0:01:36]} 32. g6 {[%emt 0:01:08]} h5 {[%emt 0:01:32]} 33. Qd3 {[%emt 0:01:30]} Qc6+ {[%emt 0:05:50]} 34. Kg1 {[%emt 0:00:01]} Rg5+ {[%emt 0:00:29]} 35. Kf2 {[%emt 0:00:39]} Qg2+ {[%emt 0:04:21]} 36. Ke1 {[%emt 0:00:45]} Qxb2 {[%emt 0:02:17]} 37. Qd2 {[%emt 0:00:57]} Rxe5+ {[%emt 0:00:53]} 38. Kf2 {[%emt 0:00:28]} Rf5+ {[%emt 0:00:43]} 39. Kg2 {[%emt 0:00:15]} Qxb3 {[%emt 0:00:15]} 40. Qe2 {[%emt 0:00:33]} Rg5+ {[%emt 0:00:40]} 41. Kf2 {[%emt 0:00:17]} Qh3 {[%emt 0:00:40]} 42. Ke1 {[%emt 0:00:59]} Rg1+ {[%emt 0:00:20]} 43. Kd2 {[%emt 0:00:08]} Rg2 {[%emt 0:00:06]} 0-1

[Event "4th EFE Metz Festival-IM"]
[Site "Metz"]
[Date "2018.07.28"]
[Round "8"]
[White "Haast, Mark"]
[Black "Gatineau, Yovann"]
[Result "1-0"]
[ECO "B22"]
[WhiteElo "2356"]
[BlackElo "2373"]
[Annotator "NA"]
[PlyCount "105"]
[EventDate "2018.07.22"]
[EventType "tourn"]
[EventCountry "FRA"]
[SourceTitle "playchess.com"]
[Source "ChessBase"]
[SourceQuality "1"]
[TimeControl "5400+30"]

1. e4 {[%emt 0:00:00]} c5 {[%emt 0:06:45]} 2. c3 {[%emt 0:00:07]} d5 {[%emt 0:00:15]} 3. exd5 {[%emt 0:00:12]} Qxd5 {[%emt 0:00:06]} 4. d4 {[%emt 0:00:11]} Nc6 {[%emt 0:00:10]} 5. Nf3 {[%emt 0:00:10]} Bf5 {[%emt 0:00:07]} 6. Be3 {[%emt 0:00:19]} Nf6 {[%emt 0:00:08]} 7. Na3 {[%emt 0:00:40]} cxd4 {[%emt 0:01:43]} 8. Bc4 {[%emt 0:00:29]} Qd7 {[%emt 0:02:53]} 9. Nxd4 {[%emt 0:01:15]} Nxd4 {[%emt 0:02:13]} 10. Bxd4 {[%emt 0:01:30]} a6 {[%emt 0:00:08]} 11. Qb3 {[%emt 0:02:48]} e6 {[%emt 0:02:21]} 12. O-O-O {[%emt 0:01:18]} Qc6 {[%emt 0:00:52]} 13. Nb5 {[%emt 0:12:25]} Nd7 {[%emt 0:07:19]} 14. Rhe1 Nc5 {[%emt 0:07:36]} 15. Bxc5 {[%emt 0:01:20]} Bxc5 {[%emt 0:00:05]} 16. Nd4 {[%emt 0:18:09]} Bxd4 {[%emt 0:00:06]} 17. Bd5 {[%emt 0:01:21]} Qb6 {[%emt 0:13:40]} 18. Rxd4 {[%emt 0:14:25]} Qxb3 {[%emt 0:00:11]} 19. Bxb3 {[%emt 0:00:07]} Rd8 {[%emt 0:04:41]} 20. Rb4 {[%emt 0:01:13]} Rd7 {[%emt 0:02:02]} 21. Rd1 {[%emt 0:01:02]} b5 {[%emt 0:06:05]} 22. a4 {[%emt 0:02:14]} Bd3 {[%emt 0:01:57]} 23. axb5 {[%emt 0:03:48]} axb5 {[%emt 0:02:31]} 24. Bc2 {[%emt 0:05:36]} Bxc2 {[%emt 0:01:01]} 25. Kxc2 {[%emt 0:00:05]} Rb7 {[%emt 0:00:03]} 26. c4 {[%emt 0:00:20]} Ke7 {[%emt 0:01:25]} 27. Rxb5 {[%emt 0:00:41]} Rxb5 {[%emt 0:01:31]} 28. cxb5 {[%emt 0:00:06]} Rb8 {[%emt 0:00:03]} 29. Kc3 {[%emt 0:00:43]} Rxb5 {[%emt 0:00:06]} 30. b4 {[%emt 0:00:05]} Rb8 {[%emt 0:03:48]} 31. Kc4 {[%emt 0:01:33]} Rc8+ {[%emt 0:00:09]} 32. Kb3 {[%emt 0:00:05]} Rb8 {[%emt 0:00:12]} 33. f4 {[%emt 0:02:21]} f6 {[%emt 0:01:10]} 34. g3 {[%emt 0:03:29]} g6 {[%emt 0:00:49]} 35. Ra1 {[%emt 0:01:03]} Rb7 {[%emt 0:07:11]} 36. Kc4 {[%emt 0:00:43]} e5 {[%emt 0:00:03]} 37. fxe5 {[%emt 0:00:29]} fxe5 {[%emt 0:00:06]} 38. b5 {[%emt 0:00:48]} Ke6 {[%emt 0:02:34]} 39. Ra6+ {[%emt 0:02:10]} Kf5 {[%emt 0:00:14]} 40. b6 {[%emt 0:00:12]} e4 {[%emt 0:00:58]} 41. h3 {[%emt 0:00:54]} e3 {[%emt 0:05:41]} 42. Kd3 {[%emt 0:00:34]} Re7 {[%emt 0:00:03]} 43. Ra5+ {[%emt 0:02:35]} Kf6 {[%emt 0:00:13]} 44. Ke2 {[%emt 0:00:23]} Rb7 {[%emt 0:03:17]} 45. Rb5 {[%emt 0:00:06]} Ke6 {[%emt 0:00:03]} 46. Kxe3 {[%emt 0:00:04]} Kd6 {[%emt 0:00:03]} 47. Kd4 {[%emt 0:03:10]} Kc6 {[%emt 0:00:14]} 48. Kc4 {[%emt 0:00:15]} Kd6 {[%emt 0:01:07]} 49. Rb2 {[%emt 0:00:27]} Kd7 {[%emt 0:01:21]} 50. Kc5 {[%emt 0:01:22]} Kc8 {[%emt 0:00:15]} 51. Ra2 {[%emt 0:00:36]} g5 {[%emt 0:04:46]} 52. Ra8+ {[%emt 0:00:15]} Kd7 {[%emt 0:00:15]} 53. Ra7 {[%emt 0:00:06]} 1-0

[Event "4th EFE Metz Festival-IM"]
[Site "Metz"]
[Date "2018.07.28"]
[Round "8"]
[White "Stephan, Victor"]
[Black "Le Corre, Benjamin"]
[Result "1/2-1/2"]
[ECO "A10"]
[WhiteElo "2356"]
[BlackElo "2257"]
[Annotator "NA"]
[PlyCount "70"]
[EventDate "2018.07.22"]
[EventType "tourn"]
[EventCountry "FRA"]
[SourceTitle "playchess.com"]
[Source "ChessBase"]
[SourceQuality "1"]
[TimeControl "5400+30"]

1. c4 {[%emt 0:00:00]} b6 {[%emt 0:00:48]} 2. e4 {[%emt 0:02:15]} Bb7 {[%emt 0:02:30]} 3. Nc3 {[%emt 0:00:26]} e5 {[%emt 0:01:26]} 4. d3 {[%emt 0:04:09]} Nc6 {[%emt 0:04:04]} 5. g3 {[%emt 0:01:00]} Bc5 {[%emt 0:02:35]} 6. Bg2 {[%emt 0:02:57]} Nge7 {[%emt 0:06:19]} 7. Nf3 {[%emt 0:01:05]} O-O {[%emt 0:02:21]} 8. O-O {[%emt 0:02:53]} a5 {[%emt 0:02:44]} 9. Be3 {[%emt 0:04:28]} d6 {[%emt 0:01:26]} 10. d4 exd4 {[%emt 0:06:42]} 11. Nxd4 {[%emt 0:06:32]} Nxd4 {[%emt 0:00:54]} 12. Bxd4 {[%emt 0:00:09]} Nc6 {[%emt 0:00:13]} 13. Bxc5 {[%emt 0:07:32]} bxc5 {[%emt 0:02:20]} 14. e5 {[%emt 0:00:53]} dxe5 {[%emt 0:02:28]} 15. Na4 {[%emt 0:04:29]} Qd6 {[%emt 0:02:43]} 16. Qd5 {[%emt 0:02:08]} Rad8 {[%emt 0:03:43]} 17. Qxc5 {[%emt 0:02:28]} Ba8 {[%emt 0:02:16]} 18. Rfe1 {[%emt 0:02:18]} f6 {[%emt 0:02:22]} 19. Bd5+ {[%emt 0:01:58]} Kh8 {[%emt 0:01:16]} 20. Kg2 {[%emt 0:01:39]} Nd4 {[%emt 0:03:38]} 21. Bxa8 {[%emt 0:01:17]} Qxc5 {[%emt 0:00:44]} 22. Nxc5 {[%emt 0:00:05]} Rxa8 {[%emt 0:00:05]} 23. Red1 {[%emt 0:01:07]} Rfb8 {[%emt 0:04:35]} 24. Rd2 {[%emt 0:01:38]} a4 {[%emt 0:00:17]} 25. f4 {[%emt 0:02:20]} Ra5 {[%emt 0:01:53]} 26. Ne4 {[%emt 0:01:02]} Nc6 {[%emt 0:01:06]} 27. Re1 {[%emt 0:01:30]} Kg8 {[%emt 0:01:11]} 28. Re3 {[%emt 0:03:56]} Rb4 {[%emt 0:02:44]} 29. Rc3 {[%emt 0:01:02]} Kf7 {[%emt 0:01:56]} 30. a3 {[%emt 0:01:55]} Rb8 {[%emt 0:01:43]} 31. Rcd3 {[%emt 0:00:30]} Re8 {[%emt 0:00:56]} 32. Rd7+ {[%emt 0:00:50]} Re7 {[%emt 0:00:09]} 33. Nc3 {[%emt 0:01:50]} exf4 {[%emt 0:00:43]} 34. Rxe7+ {[%emt 0:00:36]} Kxe7 {[%emt 0:01:40]} 35. gxf4 {[%emt 0:00:15]} Rc5 1/2-1/2

[Event "4th EFE Metz Festival-IM"]
[Site "Metz"]
[Date "2018.07.28"]
[Round "8"]
[White "Adrian, Claude"]
[Black "Harutyunyan, Ruben"]
[Result "1-0"]
[ECO "A28"]
[WhiteElo "2267"]
[BlackElo "2303"]
[Annotator "NA"]
[PlyCount "83"]
[EventDate "2018.07.22"]
[EventType "tourn"]
[EventCountry "FRA"]
[SourceTitle "playchess.com"]
[Source "ChessBase"]
[SourceQuality "1"]
[TimeControl "5400+30"]

1. c4 {[%emt 0:00:00]} e5 {[%emt 0:00:02]} 2. Nc3 {[%emt 0:00:00]} Nf6 {[%emt 0:00:04]} 3. Nf3 {[%emt 0:00:00]} Nc6 {[%emt 0:00:04]} 4. d4 {[%emt 0:00:00]} exd4 {[%emt 0:01:21]} 5. Nxd4 {[%emt 0:00:02]} Bc5 {[%emt 0:05:37]} 6. Nxc6 {[%emt 0:02:14]} bxc6 {[%emt 0:00:46]} 7. g3 {[%emt 0:05:07]} Ng4 {[%emt 0:25:04]} 8. e3 {[%emt 0:00:30]} h5 9. Bg2 Ne5 {[%emt 0:07:49]} 10. Qe2 {[%emt 0:12:52]} h4 {[%emt 0:04:53]} 11. f4 {[%emt 0:04:07]} Ng6 {[%emt 0:10:16]} 12. Bd2 {[%emt 0:06:21]} Qe7 {[%emt 0:02:10]} 13. a3 {[%emt 0:05:00]} a5 {[%emt 0:02:19]} 14. Ne4 {[%emt 0:02:36]} Bb6 {[%emt 0:04:55]} 15. Rc1 {[%emt 0:03:53]} Ba6 {[%emt 0:02:07]} 16. Qf3 {[%emt 0:16:28]} O-O-O {[%emt 0:07:15]} 17. c5 {[%emt 0:02:17]} Ba7 {[%emt 0:00:29]} 18. b4 {[%emt 0:08:49]} Rde8 {[%emt 0:03:16]} 19. Nc3 {[%emt 0:04:08]} Qf6 {[%emt 0:07:23]} 20. Kf2 {[%emt 0:05:07]} Qf5 {[%emt 0:04:18]} 21. g4 {[%emt 0:02:34]} Qf6 {[%emt 0:02:50]} 22. Bh3 {[%emt 0:01:28]} Qe7 {[%emt 0:00:40]} 23. Rhd1 {[%emt 0:00:51]} Nf8 {[%emt 0:00:47]} 24. g5 {[%emt 0:07:21]} Ne6 {[%emt 0:00:05]} 25. b5 {[%emt 0:04:20]} Bb7 {[%emt 0:00:10]} 26. b6 {[%emt 0:00:09]} cxb6 {[%emt 0:03:17]} 27. cxb6 {[%emt 0:01:40]} Bxb6 {[%emt 0:00:09]} 28. Nd5 {[%emt 0:00:15]} Qd8 {[%emt 0:00:04]} 29. Nxb6+ {[%emt 0:00:08]} Qxb6 {[%emt 0:00:06]} 30. Qd5 {[%emt 0:03:39]} c5 {[%emt 0:02:09]} 31. Qd3 {[%emt 0:00:44]} Qc6 {[%emt 0:01:15]} 32. Bxa5 {[%emt 0:00:16]} Qf3+ {[%emt 0:00:41]} 33. Ke1 {[%emt 0:00:20]} Qxh3 {[%emt 0:01:26]} 34. Qxd7+ {[%emt 0:00:25]} Kb8 {[%emt 0:00:05]} 35. Bc7+ {[%emt 0:00:35]} Ka7 {[%emt 0:00:53]} 36. Bb6+ {[%emt 0:02:01]} Ka8 {[%emt 0:00:32]} 37. Bxc5 {[%emt 0:00:10]} Rd8 {[%emt 0:03:06]} 38. Qa4+ {[%emt 0:00:09]} Kb8 {[%emt 0:00:06]} 39. Qa7+ {[%emt 0:00:26]} Kc8 {[%emt 0:00:41]} 40. Bb6+ {[%emt 0:00:12]} Bc6 {[%emt 0:00:12]} 41. Rxc6+ {[%emt 0:00:09]} Nc7 {[%emt 0:00:04]} 42. Qxc7# 1-0

[Event "4th EFE Metz Festival-IM"]
[Site "Metz"]
[Date "2018.07.29"]
[Round "9"]
[White "Murdzia, Piotr"]
[Black "Mohota, Nisha"]
[Result "1-0"]
[ECO "E10"]
[WhiteElo "2410"]
[BlackElo "2265"]
[Annotator "NA"]
[PlyCount "123"]
[EventDate "2018.07.22"]
[EventType "tourn"]
[EventCountry "FRA"]
[SourceTitle "playchess.com"]
[Source "ChessBase"]
[SourceQuality "1"]
[TimeControl "5400+30"]

1. d4 {[%emt 0:00:00]} Nf6 {[%emt 0:00:14]} 2. c4 {[%emt 0:00:12]} e6 {[%emt 0:00:03]} 3. Nf3 {[%emt 0:00:32]} d5 {[%emt 0:00:15]} 4. g3 {[%emt 0:01:13]} Bb4+ {[%emt 0:04:32]} 5. Bd2 {[%emt 0:00:25]} a5 {[%emt 0:03:20]} 6. a3 {[%emt 0:01:10]} Bxd2+ {[%emt 0:01:16]} 7. Nbxd2 {[%emt 0:00:15]} O-O {[%emt 0:00:21]} 8. Bg2 {[%emt 0:01:39]} b6 {[%emt 0:02:51]} 9. Rc1 {[%emt 0:04:38]} Nbd7 {[%emt 0:04:24]} 10. O-O {[%emt 0:13:35]} Bb7 {[%emt 0:03:47]} 11. b4 {[%emt 0:11:40]} axb4 {[%emt 0:02:18]} 12. axb4 {[%emt 0:00:06]} c6 {[%emt 0:15:10]} 13. Qb3 {[%emt 0:03:47]} Qe7 {[%emt 0:02:29]} 14. Ra1 {[%emt 0:17:00]} dxc4 {[%emt 0:08:19]} 15. Nxc4 {[%emt 0:00:11]} Nd5 {[%emt 0:00:41]} 16. b5 {[%emt 0:04:58]} cxb5 {[%emt 0:02:55]} 17. Qxb5 {[%emt 0:03:33]} Rfc8 {[%emt 0:00:18]} 18. e3 {[%emt 0:07:48]} Nc3 {[%emt 0:28:02]} 19. Qb3 {[%emt 0:00:10]} Rxa1 {[%emt 0:08:21]} 20. Rxa1 {[%emt 0:00:06]} b5 {[%emt 0:01:15]} 21. Qxc3 {[%emt 0:01:45]} Rxc4 {[%emt 0:02:30]} 22. Qa5 {[%emt 0:01:27]} Nf6 {[%emt 0:07:20]} 23. Qxb5 {[%emt 0:00:48]} Rb4 {[%emt 0:00:25]} 24. Qc5 {[%emt 0:04:20]} Qxc5 {[%emt 0:00:36]} 25. dxc5 {[%emt 0:00:04]} g6 {[%emt 0:00:36]} 26. Rc1 {[%emt 0:03:09]} Be4 {[%emt 0:00:35]} 27. Ne5 {[%emt 0:04:36]} Bxg2 {[%emt 0:00:10]} 28. Kxg2 {[%emt 0:00:04]} Nd5 {[%emt 0:00:10]} 29. c6 {[%emt 0:00:40]} Nc7 {[%emt 0:00:32]} 30. Rd1 {[%emt 0:00:13]} Rb5 {[%emt 0:00:24]} 31. Nxf7 {[%emt 0:01:13]} Rd5 {[%emt 0:01:14]} 32. Rxd5 {[%emt 0:01:47]} exd5 {[%emt 0:00:02]} 33. Ng5 {[%emt 0:01:15]} Kg7 {[%emt 0:00:32]} 34. h4 {[%emt 0:01:00]} h6 {[%emt 0:00:23]} 35. Nf3 {[%emt 0:00:09]} Kf6 {[%emt 0:00:03]} 36. Nd4 {[%emt 0:00:19]} Ke5 {[%emt 0:00:18]} 37. Kf3 {[%emt 0:00:14]} Kd6 {[%emt 0:00:18]} 38. Kf4 {[%emt 0:00:31]} Na6 {[%emt 0:00:41]} 39. h5 {[%emt 0:03:06]} gxh5 {[%emt 0:00:12]} 40. Kf5 {[%emt 0:00:05]} Nc5 {[%emt 0:01:22]} 41. f3 {[%emt 0:01:38]} Nd3 {[%emt 0:00:23]} 42. Kf6 {[%emt 0:04:14]} Nf2 {[%emt 0:00:26]} 43. Kg6 {[%emt 0:00:30]} Nh1 {[%emt 0:01:12]} 44. Nf5+ {[%emt 0:00:37]} Kxc6 {[%emt 0:00:07]} 45. Kxh5 {[%emt 0:00:12]} Kd7 {[%emt 0:00:56]} 46. Kxh6 {[%emt 0:00:10]} Nf2 {[%emt 0:00:38]} 47. Kg6 {[%emt 0:01:17]} Nd3 {[%emt 0:00:10]} 48. Kf6 {[%emt 0:00:31]} Ne1 {[%emt 0:00:17]} 49. f4 {[%emt 0:00:21]} Nd3 {[%emt 0:00:32]} 50. g4 {[%emt 0:01:06]} Nf2 {[%emt 0:00:19]} 51. g5 {[%emt 0:00:59]} Ke8 {[%emt 0:00:37]} 52. Ke5 {[%emt 0:00:34]} Kf7 {[%emt 0:00:29]} 53. Kxd5 {[%emt 0:00:15]} Nd3 {[%emt 0:00:19]} 54. Ke4 {[%emt 0:00:31]} Ne1 {[%emt 0:00:25]} 55. Nd4 {[%emt 0:00:36]} Kg6 {[%emt 0:00:07]} 56. Nf3 {[%emt 0:00:18]} Nc2 {[%emt 0:00:32]} 57. f5+ {[%emt 0:00:49]} Kg7 {[%emt 0:00:08]} 58. Ne5 {[%emt 0:00:16]} Nb4 {[%emt 0:00:44]} 59. f6+ {[%emt 0:00:16]} Kg8 {[%emt 0:00:16]} 60. g6 {[%emt 0:00:11]} Na6 {[%emt 0:00:21]} 61. f7+ {[%emt 0:00:38]} Kg7 {[%emt 0:00:04]} 62. Nd7 {[%emt 0:00:08]} 1-0

[Event "4th EFE Metz Festival-IM"]
[Site "Metz"]
[Date "2018.07.29"]
[Round "9"]
[White "Villegas, Pierre"]
[Black "Haast, Mark"]
[Result "1/2-1/2"]
[ECO "D14"]
[WhiteElo "2376"]
[BlackElo "2356"]
[Annotator "NA"]
[PlyCount "61"]
[EventDate "2018.07.22"]
[EventType "tourn"]
[EventCountry "FRA"]
[SourceTitle "playchess.com"]
[Source "ChessBase"]
[SourceQuality "1"]
[TimeControl "5400+30"]

1. d4 {[%emt 0:00:00]} d5 {[%emt 0:00:38]} 2. c4 {[%emt 0:00:32]} c6 {[%emt 0:00:48]} 3. cxd5 {[%emt 0:00:58]} cxd5 {[%emt 0:00:14]} 4. Nc3 {[%emt 0:00:06]} Nc6 {[%emt 0:00:39]} 5. Nf3 {[%emt 0:00:23]} Nf6 {[%emt 0:00:28]} 6. Bf4 {[%emt 0:00:16]} Bf5 {[%emt 0:01:30]} 7. e3 {[%emt 0:00:25]} e6 {[%emt 0:00:14]} 8. Bd3 {[%emt 0:00:36]} Bxd3 {[%emt 0:00:28]} 9. Qxd3 {[%emt 0:00:05]} Bd6 {[%emt 0:00:25]} 10. Bxd6 {[%emt 0:00:25]} Qxd6 {[%emt 0:00:18]} 11. O-O {[%emt 0:00:20]} O-O {[%emt 0:00:09]} 12. Rfc1 {[%emt 0:01:02]} Rfc8 {[%emt 0:00:46]} 13. a3 {[%emt 0:00:11]} Qd8 {[%emt 0:01:30]} 14. Na4 {[%emt 0:02:12]} Nd7 {[%emt 0:01:24]} 15. Nc5 {[%emt 0:01:50]} Nxc5 {[%emt 0:00:49]} 16. Rxc5 {[%emt 0:00:04]} Ne7 {[%emt 0:00:52]} 17. Rac1 {[%emt 0:00:07]} Rxc5 {[%emt 0:00:59]} 18. Rxc5 {[%emt 0:00:05]} Rc8 {[%emt 0:00:21]} 19. Qc2 {[%emt 0:00:20]} Rxc5 {[%emt 0:00:12]} 20. Qxc5 {[%emt 0:00:04]} Qc8 {[%emt 0:00:12]} 21. Qxc8+ {[%emt 0:00:19]} Nxc8 {[%emt 0:00:08]} 22. Kf1 {[%emt 0:00:15]} Nd6 {[%emt 0:00:40]} 23. b3 {[%emt 0:00:38]} f6 {[%emt 0:01:03]} 24. Ke2 {[%emt 0:00:37]} Kf7 {[%emt 0:00:34]} 25. Ne1 {[%emt 0:00:50]} Ke7 {[%emt 0:00:56]} 26. Nd3 {[%emt 0:00:12]} b6 {[%emt 0:00:18]} 27. f3 {[%emt 0:00:34]} Nb5 {[%emt 0:02:19]} 28. a4 {[%emt 0:00:13]} Nd6 {[%emt 0:00:26]} 29. Kd2 {[%emt 0:01:43]} Kd7 {[%emt 0:01:43]} 30. Nf4 {[%emt 0:00:34]} g6 {[%emt 0:02:27]} 31. Nd3 {[%emt 0:00:24]} 1/2-1/2

[Event "4th EFE Metz Festival-IM"]
[Site "Metz"]
[Date "2018.07.29"]
[Round "9"]
[White "Harutyunyan, Ruben"]
[Black "Stephan, Victor"]
[Result "1/2-1/2"]
[ECO "B12"]
[WhiteElo "2303"]
[BlackElo "2356"]
[Annotator "NA"]
[PlyCount "59"]
[EventDate "2018.07.22"]
[EventType "tourn"]
[EventCountry "FRA"]
[SourceTitle "playchess.com"]
[Source "ChessBase"]
[SourceQuality "1"]
[TimeControl "5400+30"]

1. e4 {[%emt 0:00:00]} c6 {[%emt 0:00:09]} 2. d4 {[%emt 0:00:00]} d5 {[%emt 0:00:10]} 3. e5 {[%emt 0:00:00]} Bf5 {[%emt 0:00:13]} 4. h4 {[%emt 0:00:00]} h5 {[%emt 0:00:14]} 5. Bd3 {[%emt 0:00:00]} Bxd3 {[%emt 0:00:27]} 6. Qxd3 {[%emt 0:00:00]} e6 {[%emt 0:00:19]} 7. Bg5 {[%emt 0:00:00]} Qa5+ {[%emt 0:00:22]} 8. Nd2 $11 {[%emt 0:00:00] LiveBook: 39 Games} Qa6 {[%emt 0:01:00]} 9. Qxa6 {[%emt 0:01:01]} Nxa6 {[%emt 0:00:19]} 10. c3 {[%emt 0:00:05]} Be7 {[%emt 0:01:27]} 11. Ngf3 {[%emt 0:00:25]} Nh6 {[%emt 0:01:03]} 12. Bxe7 {[%emt 0:01:09]} Kxe7 {[%emt 0:00:08]} 13. Nf1 {[%emt 0:00:03]} Nf5 {[%emt 0:00:23]} 14. Ke2 {[%emt 0:00:32]} Rac8 {[%emt 0:02:51]} 15. Ne3 {[%emt 0:01:59]} Nxe3 {[%emt 0:02:02]} 16. fxe3 {[%emt 0:00:17]} Rh6 {[%emt 0:02:06]} 17. Raf1 {[%emt 0:00:10]} f5 {[%emt 0:00:18]} 18. Ng5 {[%emt 0:00:09]} Nb8 {[%emt 0:00:27]} 19. a4 {[%emt 0:00:07]} Nd7 {[%emt 0:00:20]} 20. a5 {[%emt 0:00:07]} Nf8 {[%emt 0:00:15]} 21. g3 {[%emt 0:00:05]} Nh7 {[%emt 0:00:14]} 22. Nh3 {[%emt 0:00:15]} Nf8 {[%emt 0:00:30]} 23. Ra1 {[%emt 0:00:14]} Rc7 {[%emt 0:00:29]} 24. Rag1 {[%emt 0:00:15]} Rc8 {[%emt 0:00:30]} 25. b4 {[%emt 0:00:12]} Rc7 {[%emt 0:00:40]} 26. Nf4 {[%emt 0:00:02]} Ng6 {[%emt 0:00:15]} 27. Kf3 {[%emt 0:00:02]} Nxf4 {[%emt 0:00:23]} 28. exf4 {[%emt 0:00:03]} g6 {[%emt 0:00:12]} 29. Ra1 {[%emt 0:00:06]} a6 {[%emt 0:00:17]} 30. Rh3 {[%emt 0:00:01]} 1/2-1/2

[Event "4th EFE Metz Festival-IM"]
[Site "Metz"]
[Date "2018.07.29"]
[Round "9"]
[White "Le Corre, Benjamin"]
[Black "Mohammad, Fahim"]
[Result "1/2-1/2"]
[ECO "B33"]
[WhiteElo "2257"]
[BlackElo "2383"]
[Annotator "NA"]
[PlyCount "27"]
[EventDate "2018.07.22"]
[EventType "tourn"]
[EventCountry "FRA"]
[SourceTitle "playchess.com"]
[Source "ChessBase"]
[SourceQuality "1"]
[TimeControl "5400+30"]

1. e4 {[%emt 0:00:00]} c5 {[%emt 0:09:41]} 2. Nf3 {[%emt 0:00:00]} e6 {[%emt 0:00:07]} 3. d4 {[%emt 0:00:00]} cxd4 {[%emt 0:00:09]} 4. Nxd4 {[%emt 0:00:00]} Nf6 {[%emt 0:00:17]} 5. Nc3 {[%emt 0:00:00]} Nc6 {[%emt 0:00:30]} 6. Ndb5 {[%emt 0:00:03]} d6 {[%emt 0:00:20]} 7. Bf4 {[%emt 0:00:07]} e5 {[%emt 0:00:36]} 8. Bg5 {[%emt 0:00:07]} a6 {[%emt 0:00:38]} 9. Na3 {[%emt 0:00:06]} b5 {[%emt 0:00:13]} 10. Nd5 {[%emt 0:00:06]} Qa5+ {[%emt 0:00:14]} 11. Bd2 {[%emt 0:00:06]} Qd8 {[%emt 0:00:09]} 12. Bg5 {[%emt 0:00:05]} Qa5+ {[%emt 0:00:08]} 13. Bd2 {[%emt 0:00:05]} Qd8 {[%emt 0:00:14]} 14. Bg5 {[%emt 0:00:05]} 1/2-1/2